bitfinex/quotes_ETHUSD_20250414
["timestamp","ask_amount","ask_price","bid_price","bid_amount"]
[1744643203869,0.602888,1658.6,1658.0,7.54932]
[1744643204169,1.5981,1658.8,1658.1,6.03099]
[1744643204170,6.02966,1658.5,1658.1,6.03099]
[1744643204367,6.03075,1658.2,1657.8,12.06397]
[1744643204566,9.02881,1658.7,1658.1,6.03093]
[1744643204769,1.5981,1658.8,1657.8,6.03209]
[1744643204967,6.02919,1658.6,1658.2,6.03034]
[1744643205267,7.62672,1658.8,1658.4,6.02974]
[1744643205436,9.349,1659.0,1658.3,6.03008]
[1744643205638,6.96303,1658.9,1658.6,6.02914]
[1744643205860,6.02847,1658.8,1658.4,6.02978]
[1744643206061,12.05721,1658.8,1658.4,12.05953]
[1744643206257,12.05721,1658.8,1658.3,12.06048]
[1744643206258,6.02881,1658.8,1658.3,12.06048]
[1744643206533,12.05825,1658.7,1658.3,6.03004]
[1744643206735,12.05825,1658.7,1658.2,9.348]
[1744643206736,6.02972,1658.5,1658.2,9.348]
[1744643206931,6.03148,1658.0,1657.7,6.03243]
[1744643207177,6.03107,1658.1,1657.7,6.03234]
[1744643207378,12.06145,1658.2,1657.8,6.03192]
[1744643207536,6.03135,1658.1,1657.7,12.06471]
[1744643207882,6.0299,1658.4,1657.6,6.03276]
[1744643208187,6.0326,1657.7,1657.4,6.03343]
[1744643208385,6.0331,1657.6,1657.2,0.603436]
[1744643208543,6.03172,1657.9,1657.0,56.082]
[1744643208743,6.03209,1657.8,1657.1,12.06906]
[1744643209079,6.03246,1657.7,1657.3,6.0336]
[1744643209380,6.03209,1657.8,1657.2,12.06831]
[1744643209682,6.0327,1657.7,1657.3,6.03355]
[1744643209980,6.03172,1657.9,1657.0,56.082]
[1744643210146,6.03172,1657.9,1657.5,6.03313]
[1744643210348,1.6079,1658.3,1657.4,7.61574]
[1744643210681,7.63824,1658.3,1657.4,7.61574]
[1744643210881,6.03209,1657.8,1657.5,6.03303]
[1744643211049,6.03195,1657.9,1657.5,6.03303]
[1744643211239,6.03099,1658.1,1657.3,6.03379]
[1744643211563,0.763824,1658.2,1657.7,6.03231]
[1744643211881,6.03121,1658.1,1657.7,6.03227]
[1744643212044,7.63823,1658.3,1657.8,0.06032013]
[1744643212239,6.02953,1658.6,1657.9,6.03143]
[1744643212240,1.5237,1658.6,1657.9,6.03143]
[1744643212446,1.5237,1658.9,1658.1,7.60419]
[1744643212672,7.55094,1659.2,1658.8,6.02845]
[1744643212869,6.02755,1659.1,1658.7,6.02879]
[1744643213036,6.782545,1659.1,1658.8,6.02839]
[1744643213239,7.55099,1659.2,1658.8,6.02833]
[1744643213437,7.55099,1659.2,1658.8,6.02831]
[1744643213677,6.02689,1659.3,1658.9,6.08805721]
[1744643213972,6.0273,1659.2,1658.8,6.02832]
[1744643214140,0.05,1659.4,1659.1,6.02728]
[1744643214343,0.05,1659.4,1658.9,6.0278]
[1744643214344,5.17381421,1659.3,1658.9,6.0278]
[1744643214676,11.20048421,1659.3,1658.9,6.02796]
[1744643214847,5.17381421,1659.3,1659.2,6.027]
[1744643215051,5.17381421,1659.3,1659.0,6.02769]
[1744643215272,5.17381421,1659.3,1658.9,6.02781]
[1744643215575,5.17381421,1659.3,1659.2,6.027]
[1744643216575,1.17391421,1659.3,1659.2,6.027]
[1744643216766,0.05,1659.4,1659.3,6.02663]
[1744643217164,6.36777134,1659.5,1659.4,7.57647]
[1744643217853,6.02448,1659.9,1659.5,6.02558]
[1744643218055,3.99477278,1660.2,1659.4,1.5502]
[1744643218056,6.02531,1659.7,1659.4,1.5502]
[1744643218289,6.02497,1659.8,1659.4,7.57631]
[1744643218580,6.02497,1659.8,1659.5,6.02589]
[1744643218769,6.02449,1659.9,1659.5,6.02589]
[1744643218962,6.02375,1660.1,1659.7,6.02503]
[1744643219151,3.99477278,1660.2,1659.4,7.57642]
[1744643219357,0.16852624,1660.0,1659.9,6.02445]
[1744643219545,6.02376,1660.1,1659.7,6.02512]
[1744643219744,6.02376,1660.1,1659.6,6.16]
[1744643219745,0.16852624,1660.0,1659.8,6.02472]
[1744643219945,10.01819278,1660.2,1659.8,6.02467]
[1744643220179,3.99477278,1660.2,1659.9,6.02412]
[1744643220390,3.99477278,1660.2,1660.0,6.02407]
[1744643220391,0.16902848,1660.1,1660.0,6.02407]
[1744643220763,3.99477278,1660.2,1660.1,6.02373]
[1744643220962,3.99477278,1660.2,1660.0,12.04804]
[1744643221162,3.99477278,1660.2,1660.0,6.02397]
[1744643221358,3.99477278,1660.2,1660.1,6.02373]
[1744643222380,3.99477278,1660.2,1659.9,7.7091]
[1744643222589,0.39947728,1660.2,1659.9,6.16]
[1744643222749,0.05,1660.4,1660.0,6.02405]
[1744643222948,0.05,1660.4,1660.2,6.02319]
[1744643223355,6.07269,1660.4,1659.9,6.02431]
[1744643223552,0.05,1660.4,1659.8,14.06085894]
[1744643223752,6.07278,1660.4,1660.0,6.02395]
[1744643223977,0.05,1660.4,1660.2,6.02333]
[1744643224551,0.05,1660.4,1660.1,12.04699]
[1744643224750,0.05,1660.4,1660.1,6.02341]
[1744643224985,0.05,1660.4,1660.1,12.04694]
[1744643225183,0.05,1660.4,1660.2,6.02323]
[1744643225491,6.02349,1660.2,1659.9,1.5239]
[1744643225695,6.02486,1659.8,1659.4,15.07325]
[1744643225981,0.12270586,1659.7,1659.6,6.02554]
[1744643226183,0.12270586,1659.7,1659.6,7.230669]
[1744643226387,6.02375,1660.1,1659.8,6.02482]
[1744643226561,6.02338,1660.2,1659.9,0.06024178]
[1744643226896,1.0568,1660.4,1659.4,16.65756]
[1744643226897,7.07948,1660.4,1659.4,16.65756]
[1744643227194,7.07948,1660.4,1659.6,6.02529]
[1744643227195,6.02457,1659.9,1659.6,6.02529]
[1744643227352,6.02563,1659.6,1659.4,9.047]
[1744643227553,6.0264,1659.4,1659.1,0.9428]
[1744643227749,0.12318702,1659.3,1659.2,6.0269]
[1744643227983,12.05055,1659.7,1659.3,6.02649]
[1744643228188,6.02557,1659.6,1659.3,6.02649]
[1744643228485,6.02671,1659.3,1658.9,12.05602]
[1744643228658,6.02591,1659.5,1658.6,6.97196]
[1744643228659,0.119624,1659.2,1659.0,6.0878415]
[1744643228850,6.02597,1659.5,1658.9,6.02795]
[1744643228851,6.02684,1659.3,1658.9,6.02795]
[1744643229091,0.119624,1659.2,1658.6,0.9428]
[1744643229256,0.9756,1659.4,1658.8,4.55796495]
[1744643229459,0.11995915,1659.3,1658.9,15.52875649]
[1744643229660,6.02594,1659.5,1659.1,6.02707]
[1744643229860,0.12029426,1659.4,1659.2,6.0871039]
[1744643230173,6.98762,1660.0,1659.3,12.05307]
[1744643230350,12.05062,1659.7,1659.3,7.231767]
[1744643230550,12.04995,1659.8,1659.4,6.02615]
[1744643230757,12.05003,1659.8,1659.4,12.0523]
[1744643230994,6.98762,1660.0,1659.3,7.231907]
[1744643230995,6.02542,1659.7,1659.3,7.231907]
[1744643231159,12.05084,1659.7,1659.3,13.258397]
[1744643231658,6.98762,1660.0,1659.4,6.02604]
[1744643231659,6.02489,1659.8,1659.4,6.02604]
[1744643231887,6.02519,1659.7,1659.4,6.02604]
[1744643232094,6.02519,1659.7,1659.3,7.231887]
[1744643232095,6.02557,1659.6,1659.3,7.231887]
[1744643232257,6.02519,1659.7,1659.3,13.258287]
[1744643232456,6.02488,1659.8,1659.4,1.3258287]
[1744643232792,6.0245,1659.9,1659.5,6.02569]
[1744643232997,6.02487,1659.8,1659.5,6.02569]
[1744643233202,9.02373,1660.1,1659.4,6.02626]
[1744643233203,0.9375,1660.4,1659.4,13.60296495]
[1744643233404,6.023,1660.3,1659.4,13.60296495]
[1744643233698,6.02567,1659.6,1659.4,9.045]
[1744643233895,6.02565,1659.6,1659.4,9.045]
[1744643234098,6.02483,1659.8,1659.4,6.02612]
[1744643234400,6.02519,1659.7,1659.4,6.02612]
[1744643234995,6.02579,1659.6,1659.2,12.05377]
[1744643235298,0.691165,1659.9,1659.3,6.08677904]
[1744643235465,0.691165,1659.9,1659.3,6.02635]
[1744643235466,6.02522,1659.7,1659.3,6.02635]
[1744643235666,6.02507,1659.8,1659.2,6.02696]
[1744643235872,6.02507,1659.8,1659.5,6.02575]
[1744643236885,6.6257,1660.2,1659.6,12.05075]
[1744643237096,6.02436,1660.0,1659.7,6.02514]
[1744643237304,6.0259,1659.6,1659.2,6.02697]
[1744643237467,6.02675,1659.3,1659.0,9.045]
[1744643237668,6.02702,1659.2,1658.9,0.45579649]
[1744643237902,6.02801,1659.0,1658.7,6.02871]
[1744643238105,6.02893,1658.7,1658.3,6.02996]
[1744643238333,0.602702,1659.2,1658.8,6.02828]
[1744643238476,6.02737,1659.1,1658.5,6.02954]
[1744643238809,12.05505,1659.1,1658.7,12.05724]
[1744643238970,6.02827,1658.9,1658.5,6.02942]
[1744643239297,9.6428,1659.3,1658.6,6.632052]
[1744643239298,6.02785,1659.0,1658.6,6.632052]
[1744643239500,6.02785,1659.0,1658.3,10.58822495]
[1744643239501,6.02767,1659.1,1658.4,6.0299]
[1744643239680,6.0279,1659.0,1658.6,6.029]
[1744643239877,9.6428,1659.3,1658.5,6.02949]
[1744643240081,6.02779,1659.0,1658.7,6.02867]
[1744643240290,6.027,1659.2,1658.9,6.02792]
[1744643240491,6.02596,1659.5,1659.1,6.02723]
[1744643240702,12.05207,1659.5,1659.1,6.02722]
[1744643241003,12.05302,1659.4,1659.0,6.02769]
[1744643241170,6.02641,1659.4,1659.1,6.02723]
[1744643241508,0.8934,1660.1,1659.1,7.232707]
[1744643241803,0.8934,1660.1,1659.4,6.02615]
[1744643241804,6.02486,1659.8,1659.4,6.02615]
[1744643242099,6.02486,1659.8,1659.4,12.05223]
[1744643242308,6.91748,1660.1,1659.3,0.9259]
[1744643242309,0.8934,1660.1,1659.5,0.06025549]
[1744643242483,6.15944768,1660.0,1659.6,6.02521]
[1744643242806,6.02446,1659.9,1659.5,12.05162]
[1744643242971,0.8934,1660.1,1659.3,0.9259]
[1744643243174,6.91726,1660.1,1659.4,6.02627]
[1744643243391,6.02494,1659.8,1659.5,6.02584]
[1744643243628,0.8934,1660.1,1659.2,19.32491495]
[1744643243916,6.99079,1659.5,1659.1,6.02719]
[1744643244083,6.02676,1659.3,1658.9,12.05587]
[1744643244271,0.9647,1659.5,1659.0,0.06026964]
[1744643244471,0.9647,1659.5,1658.9,6.02774]
[1744643244690,6.02627,1659.4,1659.1,6.02719]
[1744643244882,12.05273,1659.4,1659.1,6.02719]
[1744643245125,0.9647,1659.5,1658.9,6.02778]
[1744643245331,6.0271,1659.2,1658.8,6.02839]
[1744643245631,6.0266,1659.4,1658.5,6.02954]
[1744643245855,6.02675,1659.3,1658.9,6.02793]
[1744643246329,6.02663,1659.4,1658.9,6.02781]
[1744643246543,6.02663,1659.4,1659.0,6.02756]
[1744643246694,6.02647,1659.4,1659.0,6.02754]
[1744643246888,6.99744,1659.8,1659.0,1.491354]
[1744643247132,6.02624,1659.5,1659.1,6.02735]
[1744643247304,6.02624,1659.5,1659.1,6.02708]
[1744643247641,6.02645,1659.4,1659.0,7.518894]
[1744643247933,6.0268,1659.3,1658.9,12.05599]
[1744643248135,6.02591,1659.5,1659.1,6.02721]
[1744643248464,6.02637,1659.4,1659.1,6.02721]
[1744643248664,6.02703,1659.2,1658.9,6.02802]
[1744643248846,6.02703,1659.2,1658.7,9.6765]
[1744643248847,6.02765,1659.1,1658.7,15.70526]
[1744643249161,6.02898,1658.7,1658.1,0.9254]
[1744643249372,0.9493,1659.0,1658.3,4.55796495]
[1744643249699,0.8872,1659.3,1658.4,0.45579649]
[1744643249839,6.91398,1659.3,1658.9,6.0278]
[1744643250022,6.02795,1659.0,1658.7,6.02871]
[1744643250221,6.02795,1659.0,1658.6,6.02914]
[1744643250459,6.02769,1659.1,1658.7,6.02878]
[1744643250665,6.02725,1659.2,1658.7,6.63758631]
[1744643250865,6.027,1659.2,1658.8,6.02828]
[1744643251165,0.8872,1659.3,1658.7,6.69791526]
[1744643251466,6.91385,1659.3,1658.7,6.63768631]
[1744643251661,6.91392,1659.3,1658.8,6.02834]
[1744643251970,6.02764,1659.1,1658.8,6.69212463]
[1744643252267,6.91417,1659.3,1658.9,6.02785]
[1744643252428,6.02701,1659.2,1658.9,6.02785]
[1744643252630,6.02701,1659.2,1658.8,6.69209463]
[1744643252840,6.02762,1659.1,1658.8,0.66372463]
[1744643253173,0.8872,1659.3,1658.9,6.02793]
[1744643253350,6.026,1659.5,1659.1,6.02702]
[1744643253529,6.02637,1659.4,1659.1,6.02702]
[1744643253929,6.02645,1659.4,1659.0,6.02746]
[1744643254156,12.05295,1659.4,1659.0,12.05503]
[1744643254345,6.02664,1659.3,1659.0,6.02746]
[1744643254868,6.02634,1659.4,1659.0,6.02771]
[1744643255068,12.05279,1659.4,1659.1,6.02727]
[1744643255725,12.05279,1659.4,1659.0,12.05529]
[1744643256276,6.02693,1659.3,1658.9,6.02794]
[1744643256572,6.02693,1659.3,1659.0,6.0276]
[1744643256765,6.02631,1659.4,1659.0,6.02767]
[1744643256931,12.05279,1659.4,1659.0,12.05534]
[1744643257346,12.05279,1659.4,1659.0,12.11560991]
[1744643257544,12.05279,1659.4,1659.0,12.05534]
[1744643258073,6.97297,1659.6,1659.1,6.0273]
[1744643258240,0.9398,1660.0,1659.2,6.027]
[1744643258455,0.9398,1660.0,1659.3,10.58459495]
[1744643258763,6.96417,1660.0,1659.6,12.0508]
[1744643258966,4.93457278,1660.3,1659.7,0.06024447]
[1744643259277,4.93457278,1660.3,1659.5,8.742]
[1744643259278,6.02426,1660.0,1659.5,8.742]
[1744643259455,10.95761278,1660.3,1659.7,6.02507]
[1744643259772,4.93457278,1660.3,1659.8,0.06024392]
[1744643259973,3.99477278,1660.3,1660.2,6.02337]
[1744643262271,3.99477278,1660.3,1660.1,6.02357]
[1744643262442,3.99477278,1660.3,1660.2,6.02337]
[1744643262631,3.99477278,1660.3,1660.1,6.02357]
[1744643262835,6.02354,1660.2,1659.8,6.02468]
[1744643263047,3.99477278,1660.3,1659.7,0.8901]
[1744643263256,6.02372,1660.2,1659.8,12.04964]
[1744643263574,6.02337,1660.2,1659.8,6.02469]
[1744643263751,3.99477278,1660.3,1659.8,6.02468]
[1744643263953,3.99477278,1660.3,1659.7,6.91524]
[1744643263954,10.51619006,1660.3,1659.7,6.91524]
[1744643264253,10.51624006,1660.3,1659.9,6.02436]
[1744643264457,16.04116278,1660.3,1659.9,12.04863]
[1744643264626,6.02314,1660.3,1659.9,6.02429]
[1744643264833,6.02303,1660.3,1659.9,6.02433]
[1744643265031,6.02359,1660.2,1659.8,6.02465]
[1744643265231,6.02302,1660.3,1659.7,6.02518]
[1744643265433,6.02312,1660.3,1659.9,6.0242]
[1744643265744,12.04647,1660.3,1659.9,6.0242]
[1744643265939,0.9885,1660.4,1660.2,6.02325]
[1744643266151,13.03417,1660.4,1660.0,12.04777]
[1744643266483,0.05,1660.4,1660.3,6.023]
[1744643266698,0.05,1660.4,1660.2,6.08348629]
[1744643266972,0.05,1660.4,1660.2,6.02326]
[1744643267131,0.05,1660.4,1660.3,6.023]
[1744643267331,0.05,1660.4,1658.9,0.602794]
[1744643267332,6.023,1660.3,1658.9,0.602794]
[1744643267534,0.9789,1660.4,1659.6,10.58326495]
[1744643267769,0.05,1660.4,1660.3,6.023]
[1744643267929,0.18948289,1660.4,1660.3,6.023]
[1744643269233,0.18948289,1660.4,1660.2,12.04642]
[1744643270371,0.18948289,1660.4,1660.2,6.0232]
[1744643270675,0.18948289,1660.4,1660.2,7.227887]
[1744643270876,0.18948289,1660.4,1660.2,13.251097]
[1744643271436,0.18948289,1660.4,1660.2,7.227887]
[1744643271649,0.18948289,1660.4,1660.2,13.251137]
[1744643271937,0.18948289,1660.4,1660.3,6.023]
[1744643272137,0.18948289,1660.4,1660.3,8.01062882]
[1744643272843,0.05,1660.4,1660.3,8.93892882]
[1744643274459,4.04477278,1661.4,1660.3,9.07592882]
[1744643274668,10.06379278,1661.4,1661.0,6.02015]
[1744643274885,4.04477278,1661.4,1660.9,6.02083]
[1744643275064,4.04477278,1661.4,1661.1,6.01997]
[1744643275272,6.06914,1661.4,1661.1,6.01995]
[1744643275570,6.06927,1661.4,1661.0,6.02031]
[1744643275771,6.06927,1661.4,1661.1,6.02005]
[1744643276006,6.06927,1661.4,1661.0,6.0203]
[1744643276007,6.01941,1661.3,1661.0,6.0203]
[1744643276195,6.06927,1661.4,1661.1,6.01998]
[1744643276505,0.05,1661.4,1660.9,6.61640986]
[1744643276669,6.0195,1661.3,1661.0,6.02028]
[1744643276996,6.06905,1661.4,1661.1,6.02002]
[1744643277503,6.06905,1661.4,1661.1,6.01996]
[1744643277796,0.05,1661.4,1661.1,6.02003]
[1744643278010,0.05,1661.4,1661.1,6.01994]
[1744643278307,0.05,1661.4,1661.2,6.01969]
[1744643278676,0.05,1661.4,1661.2,6.07987896]
[1744643279004,0.05,1661.4,1661.1,6.621974]
[1744643279312,6.06914,1661.4,1661.1,0.601994]
[1744643279489,6.06914,1661.4,1661.1,6.622054]
[1744643279805,0.05,1661.4,1661.1,12.70213584]
[1744643280002,0.05,1661.4,1661.1,6.621944]
[1744643280407,0.05,1661.4,1661.1,6.68213584]
[1744643280707,0.05,1661.4,1661.1,12.70208584]
[1744643280912,0.05,1661.4,1660.9,13.38769748]
[1744643281113,6.06934,1661.4,1661.0,6.02033]
[1744643281318,0.05,1661.4,1661.1,12.10014686]
[1744643281625,0.05,1661.4,1661.3,6.01938]
[1744643281826,0.05,1661.4,1661.3,7.223275]
[1744643281975,0.05,1661.4,1661.2,14.78457]
[1744643282171,0.05,1661.4,1661.3,7.00168]
[1744643282891,0.05,1661.4,1661.3,14.78338]
[1744643284015,0.05,1661.4,1661.3,6.01938]
[1744643284222,0.05,1661.4,1661.2,20.9437]
[1744643284521,0.05,1661.4,1661.3,6.01938]
[1744643284708,0.05,1661.4,1661.2,20.94374]
[1744643284911,0.05,1661.4,1661.2,20.94361]
[1744643285113,0.05,1661.4,1661.3,6.01938]
[1744643285695,0.05,1661.4,1661.3,6.07955919]
[1744643286039,0.05,1661.4,1661.3,6.01938]
[1744643286223,0.05,1661.4,1661.3,6.07955919]
[1744643286404,0.05,1661.4,1661.3,9.05151151]
[1744643287987,0.05,1661.4,1661.3,9.93861151]
[1744643288298,0.05,1661.4,1661.3,9.87843232]
[1744643288517,0.05,1661.4,1661.3,9.93861157]
[1744643289008,0.05,1661.4,1661.3,9.87843232]
[1744643289328,0.05,1661.4,1661.3,9.93861158]
[1744643289628,0.05,1661.4,1661.3,9.87843232]
[1744643289789,0.05,1661.4,1661.3,9.93861157]
[1744643293327,1e-05,1661.4,1661.3,9.93861157]
[1744643293634,1e-05,1661.4,1661.3,9.93860177]
[1744643294013,1e-05,1661.4,1661.3,19.09860177]
[1744643294213,0.05,1662.4,1661.9,4.25642739]
[1744643294409,6.01685,1662.0,1661.6,6.16]
[1744643294722,6.01689,1662.0,1661.7,6.01769]
[1744643295034,6.99596,1662.1,1661.7,6.01769]
[1744643295232,0.9794,1662.1,1661.9,6.01719]
[1744643295440,6.99594,1662.1,1661.8,12.03491]
[1744643295606,6.99594,1662.1,1661.9,6.01718]
[1744643295607,0.9794,1662.1,1661.9,6.01718]
[1744643295930,0.9794,1662.1,1661.9,12.03428]
[1744643296135,0.9794,1662.1,1661.9,6.0171]
[1744643296337,0.9799,1662.4,1661.9,13.98205217]
[1744643296536,0.9799,1662.4,1662.2,6.01611]
[1744643296713,6.99556,1662.4,1662.0,6.01679]
[1744643296900,6.01597,1662.3,1661.9,14.47913]
[1744643297103,6.01633,1662.2,1661.8,20.63943]
[1744643297303,6.715407,1662.3,1661.9,6.01689]
[1744643297532,6.01582,1662.3,1661.9,6.01689]
[1744643297714,6.01582,1662.3,1661.9,12.03392]
[1744643297917,6.01582,1662.3,1661.9,6.01689]
[1744643298427,0.9799,1662.4,1662.0,6.01668]
[1744643298428,6.99559,1662.4,1662.0,6.01668]
[1744643298613,0.05,1662.4,1662.3,6.01576]
[1744643299135,0.05,1662.4,1662.2,12.03192]
[1744643299440,0.05,1662.4,1662.2,6.01596]
[1744643299911,0.05,1662.4,1662.3,6.01576]
[1744643300111,0.05,1662.4,1662.3,14.47676]
[1744643300314,0.05,1662.4,1662.3,20.82860276]
[1744643302217,0.05,1662.4,1662.3,14.47676]
[1744643302418,0.05,1662.4,1662.3,18.73318739]
[1744643304245,0.05,1662.4,1662.2,14.9363837]
[1744643304450,0.05,1662.4,1662.3,6.01576]
[1744643305044,6.06554,1662.4,1662.2,8.459]
[1744643305559,12.08116,1662.4,1662.2,8.459]
[1744643305720,6.90871,1662.3,1661.9,12.03432]
[1744643305927,6.90871,1662.3,1662.0,6.0168]
[1744643306133,6.90866,1662.3,1662.0,6.01674]
[1744643306651,6.01612,1662.2,1661.9,6.01712]
[1744643306867,12.92466,1662.3,1661.9,12.03418]
[1744643307052,12.92474,1662.3,1661.9,6.01706]
[1744643307259,6.01625,1662.2,1661.9,6.01706]
[1744643307675,2.3110803,1662.3,1661.6,4.25642739]
[1744643307837,6.01733,1661.9,1661.5,8.158]
[1744643308043,12.03472,1661.9,1661.5,12.03695]
[1744643308362,6.01938,1661.3,1661.0,6.02031]
[1744643308530,6.0183,1661.6,1661.2,6.0196]
[1744643308736,6.0183,1661.6,1661.0,6.02046]
[1744643309071,6.01913,1661.4,1661.1,8.158]
[1744643309239,6.01868,1661.5,1661.1,21.615845]
[1744643309421,6.01868,1661.5,1661.2,6.01973]
[1744643309624,6.01933,1661.4,1661.1,8.158]
[1744643309865,12.03866,1661.4,1661.1,8.158]
[1744643310078,6.01933,1661.4,1661.1,8.158]
[1744643310251,6.0187,1661.5,1661.1,8.2181919]
[1744643310571,0.9028,1661.7,1661.3,6.01929]
[1744643310572,6.01838,1661.6,1661.3,6.01929]
[1744643310867,6.01829,1661.6,1661.1,26.19182658]
[1744643311029,12.03673,1661.6,1661.2,6.0196]
[1744643311223,6.92079,1661.7,1661.3,6.01926]
[1744643311439,6.92079,1661.7,1661.3,12.0987011]
[1744643311824,6.01759,1661.8,1661.5,6.01859]
[1744643312076,6.018,1661.7,1661.4,6.019]
[1744643312406,12.03619,1661.7,1661.3,13.24841011]
[1744643312662,6.018,1661.7,1661.3,12.03841]
[1744643312821,6.01768,1661.8,1661.5,6.01858]
[1744643313021,6.01768,1661.8,1661.4,6.01884]
[1744643313022,6.01794,1661.7,1661.4,6.01884]
[1744643313245,6.01794,1661.7,1661.3,10.27566739]
[1744643313565,6.01794,1661.7,1661.4,6.01883]
[1744643314069,6.01953,1661.3,1661.1,8.158]
[1744643314226,6.02069,1661.0,1660.6,14.18176]
[1744643314562,6.02086,1660.9,1660.7,0.33597414]
[1744643314759,6.02119,1660.8,1660.7,0.33597414]
[1744643314924,0.8848,1660.9,1660.6,8.16]
[1744643315126,3.0,1661.2,1660.6,15.42344274]
[1744643315325,3.0,1661.2,1660.6,14.1818]
[1744643315326,6.02077,1661.0,1660.6,14.1818]
[1744643315562,6.90438,1661.3,1660.6,15.14392]
[1744643315763,6.0206,1661.0,1660.7,6.02137]
[1744643316576,6.02047,1661.0,1660.6,14.18167]
[1744643316922,6.02047,1661.0,1660.7,6.02151]
[1744643317731,6.01994,1661.2,1660.8,6.02104]
[1744643318042,12.0406,1661.1,1660.7,6.02142]
[1744643318243,6.02027,1661.1,1660.7,6.0816065]
[1744643318443,6.02027,1661.1,1660.8,6.02114]
[1744643318660,6.0201,1661.1,1660.6,8.16]
[1744643318832,6.97698,1660.8,1660.6,8.16]
[1744643319275,12.99839,1660.8,1660.6,8.16]
[1744643319439,10.27549739,1661.4,1660.7,6.02155]
[1744643319440,3.9328,1661.4,1660.7,6.02155]
[1744643319647,6.02021,1661.1,1660.7,6.02139]
[1744643319978,6.02267,1660.4,1659.9,6.93906]
[1744643320127,6.02267,1660.4,1660.0,6.02394]
[1744643320329,6.9636,1660.7,1660.1,6.02371]
[1744643320330,6.02229,1660.5,1660.1,6.02371]
[1744643320543,6.9636,1660.7,1660.2,6.0231]
[1744643320764,12.98542,1660.7,1660.3,6.02295]
[1744643321081,0.942,1660.7,1660.0,6.02403]
[1744643321257,0.942,1660.7,1659.8,10.41642739]
[1744643321258,6.02392,1660.1,1659.3,0.9274]
[1744643321432,6.93604,1660.2,1659.8,12.04933]
[1744643321631,6.97511,1660.5,1660.1,6.02352]
[1744643321926,6.02284,1660.4,1659.9,6.02413]
[1744643322131,6.02334,1660.3,1659.8,6.02481]
[1744643322379,0.9321,1660.1,1659.1,0.05]
[1744643322678,1.627672,1660.1,1659.5,0.9399]
[1744643322963,6.02415,1660.0,1659.6,6.02554]
[1744643323163,6.02264,1660.4,1659.9,6.02427]
[1744643323470,6.02337,1660.3,1659.8,6.02463]
[1744643323771,6.02338,1660.2,1659.8,6.02463]
[1744643324136,6.02464,1659.9,1659.5,15.12978]
[1744643324467,6.02373,1660.1,1659.6,6.02548]
[1744643324664,6.02437,1660.0,1659.6,6.02548]
[1744643325037,6.02437,1660.0,1659.5,15.12978]
[1744643325344,7.228085,1660.2,1659.5,15.12978]
[1744643325345,6.02495,1659.8,1659.5,9.1039]
[1744643326278,6.02373,1660.1,1659.7,6.02512]
[1744643326566,12.74223,1660.6,1659.6,10.28177739]
[1744643326767,6.02375,1660.1,1659.7,12.05007]
[1744643326965,12.97803,1660.4,1659.8,6.08503143]
[1744643327167,12.97803,1660.4,1659.9,6.02425]
[1744643327168,6.95482,1660.4,1659.9,6.02425]
[1744643327343,12.97773,1660.4,1660.0,6.02386]
[1744643327663,12.97773,1660.4,1659.9,7.05834188]
[1744643327664,6.023,1660.3,1659.9,13.08257188]
[1744643327868,12.97772,1660.4,1660.0,6.08432383]
[1744643328162,6.02214,1660.6,1660.1,6.0234]
[1744643328365,6.02244,1660.5,1660.1,6.0234]
[1744643328572,6.02273,1660.4,1660.0,21.11384]
[1744643328738,6.02244,1660.5,1660.1,8.134984]
[1744643328940,6.02193,1660.6,1660.2,6.08357806]
[1744643329871,6.02333,1660.3,1659.9,7.05840188]
[1744643330344,12.04666,1660.3,1659.9,7.05840188]
[1744643330548,6.0237,1660.2,1659.8,14.19078]
[1744643330736,6.02316,1660.3,1659.9,6.02415]
[1744643330932,12.04452,1660.6,1660.2,6.02313]
[1744643331156,6.90749,1660.7,1660.1,6.99009]
[1744643331334,6.02209,1660.6,1660.2,6.02337]
[1744643331534,6.02276,1660.4,1660.1,6.99009]
[1744643331741,6.02234,1660.5,1660.1,8.291374]
[1744643331947,6.02194,1660.6,1660.2,6.08358778]
[1744643332279,6.02194,1660.6,1660.2,6.08344778]
[1744643332569,6.90751,1660.7,1660.3,6.02285]
[1744643332767,6.90751,1660.7,1660.3,12.04567]
[1744643332933,6.02196,1660.6,1660.2,6.02336]
[1744643333133,6.02229,1660.5,1660.2,6.02336]
[1744643334683,6.02274,1660.4,1660.0,6.0239]
[1744643334970,12.04551,1660.4,1660.0,6.02379]
[1744643335151,0.8859,1660.7,1660.2,6.02325]
[1744643335352,6.02219,1660.6,1660.2,6.0232]
[1744643335671,6.02267,1660.4,1660.1,6.02369]
[1744643335971,6.02267,1660.4,1660.1,7.228367]
[1744643336158,6.02267,1660.4,1660.1,13.251967]
[1744643336762,6.02267,1660.4,1660.1,7.228367]
[1744643337082,6.02234,1660.5,1660.1,7.228337]
[1744643337382,6.02234,1660.5,1660.2,0.06022639]
[1744643337564,6.02234,1660.5,1660.2,6.02332]
[1744643337741,12.0449,1660.5,1660.1,12.04717]
[1744643337941,0.8859,1660.7,1660.2,0.06022788]
[1744643338142,6.90757,1660.7,1660.3,6.02286]
[1744643338435,6.02194,1660.6,1660.3,6.08308318]
[1744643338683,6.02194,1660.6,1660.3,7.2937285]
[1744643338859,6.90757,1660.7,1660.3,13.25634532]
[1744643339206,6.02128,1660.8,1660.4,6.02251]